Posting Date,Expenditure Area,Supplier Name,Net Amount,Expense Type,Reason for Expense 
03-Apr-19,Culture & Environment Services,Agoda.Com,973.33,Miscellaneous Stock  - Purchases,Accommodation whilst working at Peterborough installing play
12-Apr-19,Culture & Environment Services,Aldi 776 104,14.16,Equipment / Furniture / Materials,Tap & die set - PA Inspector
29-Apr-19,Culture & Environment Services,Amazon Music,65.83,Equipment / Furniture / Materials,Error user to refund cost as charged to wrong card MJH
05-Apr-19,Culture & Environment Services,Amazon.Co.Uk,29.68,Equipment / Furniture / Materials,Magnetic board for office
11-Apr-19,Culture & Environment Services,Amazon.Co.Uk,33.32,Equipment / Furniture / Materials,Masks - Crem Staff
16-Apr-19,Culture & Environment Services,Amazon.Co.Uk,19.91,Materials and Supplies - Miscellaneous,One Use Ice Pack
18-Apr-19,Culture & Environment Services,Amazon.Co.Uk,15.52,Materials and Supplies - Miscellaneous,Plasters
15-Apr-19,Culture & Environment Services,Amazon.Co.Uk,13.31,Stationery,Remembrance book
08-Apr-19,Culture & Environment Services,Amzn Mktp Uk,6.40,Direct Transport Costs,Adhesive mounting discs for car dash boards
18-Apr-19,Culture & Environment Services,Amzn Mktp Uk,335.00,Direct Transport Costs,2x tablets
04-Apr-19,Culture & Environment Services,Amzn Mktp Uk,5.07,Equipment / Furniture / Materials,teaspoons x24 for catering use
08-Apr-19,Culture & Environment Services,Amzn Mktp Uk,2.99,Stationery,Cutlery for office
08-Apr-19,Culture & Environment Services,Amzn Mktp Uk,3.94,Stationery,Cutlery for office
17-Apr-19,Culture & Environment Services,Amznmktplace,15.75,Cleaning Supplies,Toilet keys
15-Apr-19,Culture & Environment Services,Amznmktplace,19.57,Equipment / Furniture / Materials,x2 disco lights for activities
23-Apr-19,Culture & Environment Services,Amznmktplace,79.17,Equipment / Furniture / Materials,Tea and Coffee trolley
29-Apr-19,Culture & Environment Services,Amznmktplace,40.82,Equipment / Furniture / Materials,Tea and Coffee trolley
09-Apr-19,Culture & Environment Services,Amznmktplace,19.47,Materials and Supplies - Miscellaneous,Monkey Home disposable urine bags
09-Apr-19,Culture & Environment Services,Amznmktplace Amazon.Co.Uk,6.73,Clothing / Uniform & Laundry,Gloves
11-Apr-19,Culture & Environment Services,Amznmktplace Amazon.Co.Uk,3.29,Direct Transport Costs,Phone case
26-Apr-19,Culture & Environment Services,Amznmktplace Amazon.Co.Uk,2.24,Equipment / Furniture / Materials,x20 tent pegs for xtreme active gear
16-Apr-19,Culture & Environment Services,Amznmktplace Amazon.Co.Uk,15.99,Stationery,Condolence book 
05-Apr-19,Culture & Environment Services,Anchor Safety Llp,44.95,Clothing / Uniform & Laundry,Safety Glasses
16-Apr-19,Culture & Environment Services,Applaud Coffee,2.42,Subsistence & Conference/Seminar / Event Expenses,ipswich central meeting
18-Apr-19,Culture & Environment Services,Applaud Coffee,6.67,Subsistence & Conference/Seminar / Event Expenses,museum handover meeting
25-Apr-19,Culture & Environment Services,Applaud Coffee,4.83,Subsistence & Conference/Seminar / Event Expenses,creation space handover meeting
02-Apr-19,Culture & Environment Services,Argos Ltd,18.32,Equipment / Furniture / Materials,rail to store stab vests
03-Apr-19,Culture & Environment Services,Argos Ltd,11.99,Equipment / Furniture / Materials,Nets for Marina - Cleansing
03-Apr-19,Culture & Environment Services,Argos Ltd,-11.99,Equipment / Furniture / Materials,Returned nets - unsuitable
10-Apr-19,Culture & Environment Services,Argos Ltd,16.65,Equipment / Furniture / Materials,batteries
30-Apr-19,Culture & Environment Services,Argos Ltd,25.97,Stationery,Ink Cartridges for Bars Printer
29-Apr-19,Culture & Environment Services,Argos Retail Group,39.98,Equipment / Furniture / Materials,x2 cable reels 20 metres
04-Apr-19,Culture & Environment Services,Argos Warren Heath,9.99,Equipment / Furniture / Materials,Exercise Ball For Waterfront gym
05-Apr-19,Culture & Environment Services,Asda Petrol 4278,62.50,Direct Transport Costs,diesel fuel GV12 SWJ
01-Apr-19,Culture & Environment Services,Asda Stores 4278,69.08,Catering/Beverages,Catering order - recharge
05-Apr-19,Culture & Environment Services,Asda Stores 4278,5.00,Catering/Beverages,Lemons & Limes
25-Apr-19,Culture & Environment Services,Asda Superstore,1.85,Catering/Beverages,Gluten Free Food for conference 51094
26-Apr-19,Culture & Environment Services,Asda Superstore,1.85,Catering/Beverages,Gluten Free Pastry for buffet 51094
10-Apr-19,Culture & Environment Services,Asda Superstore,6.25,Miscellaneous Expenses,Meeting Refreshments for Volunteers - Music Day Selection
16-Apr-19,Culture & Environment Services,Asda Superstore 4981,3.75,Miscellaneous Stock  - Purchases,Sun cream PPE - Landscape Team
02-Apr-19,Culture & Environment Services,B & M Retail,49.87,Materials and Supplies - Miscellaneous,Black hand towels for Regent visiting shows & artists.
15-Apr-19,Culture & Environment Services,B & Q 1315,28.32,Equipment / Furniture / Materials,Timber - HAVERGATE ROAD - PA Inspector
30-Apr-19,Culture & Environment Services,B & Q 1315,3.35,Equipment / Furniture / Materials,Fixings Example Tablet - Reception
11-Apr-19,Culture & Environment Services,B & Q 1315,5.56,Materials and Supplies - Miscellaneous,HEX BOLT
11-Apr-19,Culture & Environment Services,B & Q 1315,3.32,Materials and Supplies - Miscellaneous,TA213
12-Apr-19,Culture & Environment Services,B & Q 1315,3.47,Materials and Supplies - Miscellaneous,VR MPC 50L
26-Apr-19,Culture & Environment Services,B & Q 1315,34.17,Materials and Supplies - Miscellaneous,Furn Oil 2L and Tube Starter
05-Apr-19,Culture & Environment Services,B & Q 1315,18.83,Miscellaneous Stock  - Purchases,Cement - HOLYWELLS - Landscape Team
10-Apr-19,Culture & Environment Services,B & Q 1315,12.50,Miscellaneous Stock  - Purchases,Compost - CCP - Landscape Team
17-Apr-19,Culture & Environment Services,B&m Retail Ltd,10.21,Specific Campaigns / Projects expenditure,Easter Egg Hunt At The House pay for eggs
25-Apr-19,Culture & Environment Services,B.Com 177923-6656x Days I,330.02,Miscellaneous Stock  - Purchases,Accommodation in Peterborough for Landscape Team
08-Apr-19,Culture & Environment Services,Bag Agg Ltd,25.00,Equipment / Furniture / Materials,Ballast - SHERRINGTON ROAD - PA Inspector
15-Apr-19,Culture & Environment Services,Bag Agg Ltd,25.00,Equipment / Furniture / Materials,Ballast for concrete Newbury Road Rec
01-Apr-19,Culture & Environment Services,Bag Agg Ltd,78.50,Miscellaneous Stock  - Purchases,Type 1 Granite - MILLENIUM CEMETERY - Landscape Team
08-Apr-19,Culture & Environment Services,Bag Agg Ltd,25.00,Miscellaneous Stock  - Purchases,Ballast - HOLYWELLS - Landscape Team
04-Apr-19,Culture & Environment Services,Boilerjuice Ltd,692.35,Parks Vehicle Costs,Red Diesel for Whitton
24-Apr-19,Culture & Environment Services,Boilerjuice Ltd,518.83,Parks Vehicle Costs,Purchase of Red Diesel 1 / 2
24-Apr-19,Culture & Environment Services,Boilerjuice Ltd,208.14,Parks Vehicle Costs,Purchase of Red diesel 2/2
15-Apr-19,Culture & Environment Services,Bolton Stores,15.68,Miscellaneous Expenses,Staff welfare
03-Apr-19,Culture & Environment Services,Booker Limited Ipswich,168.37,Catering/Beverages,Stock for Regent bars
16-Apr-19,Culture & Environment Services,Booker Limited Ipswich,62.92,Catering/Beverages,"Flavoured Gin for Bars, Hots dogs etc for easter Panto"
16-Apr-19,Culture & Environment Services,Booker Limited Ipswich,36.98,Catering/Beverages,"Flavoured Gin for Bars, Hots dogs etc for easter Panto"
16-Apr-19,Culture & Environment Services,Booker Limited Ipswich,20.52,Catering/Beverages,"Flavoured Gin for Bars, Hots dogs etc for easter Panto"
01-Apr-19,Culture & Environment Services,Booker Limited Ipswich,27.90,Miscellaneous Expenses,Great East Swim training - induction day food
08-Apr-19,Culture & Environment Services,Buildbase - Ipswich,562.00,Development & Maintenance of Natural Areas,"OCP: Timber for Boardwalk, Fence & Platform"
05-Apr-19,Culture & Environment Services,Bunzl,157.00,Cleaning Supplies,10 packs of toilet roll for Old Foundry road toilets
05-Apr-19,Culture & Environment Services,Bunzl,101.22,Cleaning Supplies,Cleaning supplies
10-Apr-19,Culture & Environment Services,Bunzl,15.24,Cleaning Supplies,Spray Bleach - Christchurch Hub
01-Apr-19,Culture & Environment Services,Caffe Nero - 101,10.75,Subsistence & Conference/Seminar / Event Expenses,subsistence during TIC out of hours desk installation
08-Apr-19,Culture & Environment Services,Caffe Nero - 101,13.42,Subsistence & Conference/Seminar / Event Expenses,subsistence during TIC out of hours desk installation
19-Apr-19,Culture & Environment Services,Card Factory,11.67,Equipment / Furniture / Materials,Boxes for tech leads
04-Apr-19,Culture & Environment Services,Carrier Bag Shop,37.78,Advertising/Publicity,paper bags for Ipswich Market for LYLM week
04-Apr-19,Culture & Environment Services,Clarkes Of Walsham,107.91,Miscellaneous Stock  - Purchases,4ft fencing - SKYLARK - Landscape Team
10-Apr-19,Culture & Environment Services,Clickers Archery Ltd,102.83,Equipment / Furniture / Materials,x50 archery target faces
11-Apr-19,Culture & Environment Services,Coastal Building Suppl,290.00,Miscellaneous Stock  - Purchases,x4 Wheelbarrows - PURCHASED FOR THE LANDSCAPE TEAM
16-Apr-19,Culture & Environment Services,Collier&catchpole,17.06,Equipment / Furniture / Materials,Resin - BENCH INSTALLATION CCP - PA Inspector
04-Apr-19,Culture & Environment Services,Collier&catchpole,23.83,Materials and Supplies - Miscellaneous,1 LAND DRAIN 80MM X 25M PERFORATED
01-Apr-19,Culture & Environment Services,Collier&catchpole,72.00,Miscellaneous Stock  - Purchases,Slabs - MILLENIUM CEMETERY - Landscape Team
15-Apr-19,Culture & Environment Services,Collier.Marshall,171.60,Equipment / Furniture / Materials,"Sand, Cement, Slabs, Aggregate - Masonry"
10-Apr-19,Culture & Environment Services,Cool Beanz,1.83,Miscellaneous Expenses,Meeting Refreshments - Alchemy Fireworks
10-Apr-19,Culture & Environment Services,Cool Beanz,13.29,Miscellaneous Expenses,Meeting Refreshments - Alchemy Fireworks
09-Apr-19,Culture & Environment Services,Cpw Locksmiths And Securi,12.18,Equipment / Furniture / Materials,Keys Cut for New Staff
26-Apr-19,Culture & Environment Services,Cpw Locksmiths And Securi,20.00,Materials and Supplies - Miscellaneous,key cutting for bin stores
09-Apr-19,Culture & Environment Services,Currys,141.66,Specific Campaigns / Projects expenditure,Vax machine for cigarette butts
24-Apr-19,Culture & Environment Services,Dance East,3.50,Subsistence & Conference/Seminar / Event Expenses,russell maliphant NPO update
16-Apr-19,Culture & Environment Services,Drapers Arms,30.07,Miscellaneous Stock  - Purchases,Meal while working in Peterborough
17-Apr-19,Culture & Environment Services,Drapers Arms,31.08,Miscellaneous Stock  - Purchases,meals while working in Peterborough
18-Apr-19,Culture & Environment Services,Drapers Arms,33.35,Miscellaneous Stock  - Purchases,Meals while working in Peterborough
24-Apr-19,Culture & Environment Services,Drapers Arms,30.04,Miscellaneous Stock  - Purchases,Meals while working in Peterborough
25-Apr-19,Culture & Environment Services,Drapers Arms,29.97,Miscellaneous Stock  - Purchases,Meals while working in Peterborough
26-Apr-19,Culture & Environment Services,Drapers Arms,27.57,Miscellaneous Stock  - Purchases,Meal while working away at Peterborough
29-Apr-19,Culture & Environment Services,Drapers Arms,35.81,Miscellaneous Stock  - Purchases,Disposal of rubber surfacing from Peterborough
30-Apr-19,Culture & Environment Services,Drapers Arms,15.81,Miscellaneous Stock  - Purchases,Meals whilst working in Peterborough
01-Apr-19,Culture & Environment Services,Dvla Vehicle Tax,252.50,Direct Transport Costs,Vehicle tax for FL05 LVY
01-Apr-19,Culture & Environment Services,Dvla Vehicle Tax,252.50,Direct Transport Costs,Vehicle Tax for LG15 BXW
08-Apr-19,Culture & Environment Services,Dvla Vehicle Tax,262.50,Direct Transport Costs,Vehicle Tax for AV12 NTM
08-Apr-19,Culture & Environment Services,Dvla Vehicle Tax,167.50,Direct Transport Costs,Vehicle Tax for AY12 DXV
08-Apr-19,Culture & Environment Services,Dvla Vehicle Tax,167.50,Direct Transport Costs,Vehicle Tax for AY12 DXW
08-Apr-19,Culture & Environment Services,Dvla Vehicle Tax,617.50,Direct Transport Costs,Vehicle Tax for AY15 NFZ
08-Apr-19,Culture & Environment Services,Dvla Vehicle Tax,"1,330.50",Direct Transport Costs,Vehicle tax for AY56 FLZ
08-Apr-19,Culture & Environment Services,Dvla Vehicle Tax,262.50,Direct Transport Costs,Vehicle Tax for FP05 NFO
08-Apr-19,Culture & Environment Services,Dvla Vehicle Tax,262.50,Direct Transport Costs,Vehicle Tax for LC16 DDN
08-Apr-19,Culture & Environment Services,Dvla Vehicle Tax,162.50,Direct Transport Costs,Vehicle Tax for YK60 AEB
09-Apr-19,Culture & Environment Services,Dvla Vehicle Tax,162.50,Direct Transport Costs,Vehicle Tax for YK11 AOT
24-Apr-19,Culture & Environment Services,Dvla Vehicle Tax,262.50,Direct Transport Costs,Vehicle Tax for Ap07 YNH
08-Apr-19,Culture & Environment Services,Dvla Vehicle Tax,262.50,Parks Vehicle Costs,Vehicle Tax for AO08 YXB
08-Apr-19,Culture & Environment Services,Dvla Vehicle Tax,262.50,Parks Vehicle Costs,Vehicle Tax for AP08 BKD
04-Apr-19,Culture & Environment Services,Dwn Limited,375.62,Goods for Resale - Retail,travel books for retail
25-Apr-19,Culture & Environment Services,Dwn Limited,-11.58,Goods for Resale - Retail,Book credit
24-Apr-19,Culture & Environment Services,Dyer Welding Services,148.00,Equipment / Furniture / Materials,Waste Bin steel mesh Liners
16-Apr-19,Culture & Environment Services,Ecp -066 Ipswich,19.77,Parks Vehicle Costs,Oil for topping up Ford vans
04-Apr-19,Culture & Environment Services,Ellenbrook,19.92,Direct Transport Costs,19.94l petrol (red jerry can)
04-Apr-19,Culture & Environment Services,Ellenbrook,46.61,Direct Transport Costs,42.73l diesel DY56 VKD
11-Apr-19,Culture & Environment Services,Foams 4 Sports Ltd,98.87,Equipment / Furniture / Materials,"Jump boards, athletics equipment"
30-Apr-19,Culture & Environment Services,Foams 4 Sports Ltd,175.12,Equipment / Furniture / Materials,x2 500g comp javelins
03-Apr-19,Culture & Environment Services,Go Ipswich,17.98,Equipment / Furniture / Materials,Nets for Marina - Cleansing
19-Apr-19,Culture & Environment Services,Greater Anglia Trains,119.20,Transport Costs - Miscellaneous,Travel for conference - 2 people
18-Apr-19,Culture & Environment Services,Gripfixings Ipswich,21.80,Materials and Supplies - Miscellaneous,Brackets for bench installation - CCP
19-Apr-19,Culture & Environment Services,Groundsman Tools And Supp,319.14,Materials and Supplies - Miscellaneous,Equipment for Grounds Maintenance and leaf yard
26-Apr-19,Culture & Environment Services,Guardian News & Media,708.33,Advertising/Publicity,Newspaper advert - GM theatre job
02-Apr-19,Culture & Environment Services,Halfords 0883,24.15,Equipment / Furniture / Materials,various items for - PA Inspector
10-Apr-19,Culture & Environment Services,Hg Gladwell & Sons,56.04,Materials and Supplies - Miscellaneous,x5 bags of Duck Food - Christchurch Hub
11-Apr-19,Culture & Environment Services,Hg Gladwell & Sons,22.42,Materials and Supplies - Miscellaneous,duck food Holywells park
30-Apr-19,Culture & Environment Services,Horticultural Sppls Ltd,70.15,Materials and Supplies - Miscellaneous,Grass Seeds - Christchurch Park Hub
03-Apr-19,Culture & Environment Services,Hotel On Booking.Com B.Co,800.00,Miscellaneous Stock  - Purchases,Accommodation whilst working at Peterborough for play site
05-Apr-19,Culture & Environment Services,Hughes,120.82,Equipment / Furniture / Materials,Fridge for Backstage Hospitality
03-Apr-19,Culture & Environment Services,Hughes Tv & Audio,90.83,Equipment / Furniture / Materials,Microwave Oven for Backstage Hospitality
15-Apr-19,Culture & Environment Services,Hydro-Actif.Com,153.33,Equipment / Furniture / Materials,Replacement Aqua fit Mat
01-Apr-19,Culture & Environment Services,Iceland,5.08,Miscellaneous Expenses,Great East Swim - Food for induction morning
10-Apr-19,Culture & Environment Services,Indespension,29.05,Equipment / Furniture / Materials,Lights for the park trailer
12-Apr-19,Culture & Environment Services,Ipswich Arts & Enterta,5.00,Miscellaneous Expenses,Voucher exchange for Box Office
09-Apr-19,Culture & Environment Services,Itunes.Com/Bill,8.32,Miscellaneous Expenses,update of TIC music
09-Apr-19,Culture & Environment Services,Itunes.Com/Bill,9.16,Miscellaneous Expenses,update of TIC music playlist
30-Apr-19,Culture & Environment Services,J P Lennard Ltd,208.25,Equipment / Furniture / Materials,Replacement foam for the leisure pool barrier boom.
30-Apr-19,Culture & Environment Services,J P Lennard Ltd,321.53,Equipment / Furniture / Materials,Replacement parts for 1 x anti-wave and 1 x standard rope
16-Apr-19,Culture & Environment Services,Jacksons - Peterborough,38.00,Miscellaneous Stock  - Purchases,White Marking paint - WATERTOWER PA - Landscape Team
18-Apr-19,Culture & Environment Services,Jacksons - Peterborough,21.38,Miscellaneous Stock  - Purchases,4 Edge Carcasing - WATERTOWER PLAY AREA - Landscape Team
18-Apr-19,Culture & Environment Services,Jacksons - Peterborough,57.47,Miscellaneous Stock  - Purchases,4 Edge Carcasing - WATERTOWER PLAY AREA - Landscape Team
24-Apr-19,Culture & Environment Services,Jacksons - Peterborough,97.15,Miscellaneous Stock  - Purchases,4edge carcasings & screws - WATERTOWER PLAY AREA - Landscape
25-Apr-19,Culture & Environment Services,Jacksons - Peterborough,38.91,Miscellaneous Stock  - Purchases,Ballast & Sand - WATERTOWER PLAY AREA - Landscape Team
26-Apr-19,Culture & Environment Services,Jacksons - Peterborough,143.04,Miscellaneous Stock  - Purchases,Cement & Trowel - WATERTOWER PLAY AREA - Landscape Team
16-Apr-19,Culture & Environment Services,Jkh Drainage Units Ltd,370.00,Goods for Resale - Bereavement,supplies
08-Apr-19,Culture & Environment Services,Jtm Plumbing Ltd,60.54,Materials and Supplies - Miscellaneous,Monster Multi Use Wonder Wipes and Multi use wipes
25-Apr-19,Culture & Environment Services,Kent Blaxill And C,30.49,Equipment / Furniture / Materials,Large Sandpaper Roll - Bench Maintenance
11-Apr-19,Culture & Environment Services,Kesgrave Aggregates,366.97,Equipment / Furniture / Materials,"Sand, Ballast & cement for work at Millennium Cem"
04-Apr-19,Culture & Environment Services,Kings,16.67,Materials and Supplies - Miscellaneous,4 x Cylinder key
08-Apr-19,Culture & Environment Services,Landmark Trading,690.00,Materials and Supplies - Miscellaneous,Monkey home disposable wee bags
08-Apr-19,Culture & Environment Services,Lumberjacks,62.92,Development & Maintenance of Natural Areas,Wire for Braziers Wood Boardwalk
30-Apr-19,Culture & Environment Services,Lumberjacks,47.62,Development & Maintenance of Natural Areas,Fence and Railing
04-Apr-19,Culture & Environment Services,Lumberjacks,30.90,Materials and Supplies - Miscellaneous,75 Machine Rounds
04-Apr-19,Culture & Environment Services,Lumberjacks,84.00,Miscellaneous Stock  - Purchases,4ft Fencing - WHITEHOUSE SKATE PARK - Landscape Team
04-Apr-19,Culture & Environment Services,Lumberjacks,-84.00,Miscellaneous Stock  - Purchases,Fencing - ITEM REFUNDED AS NO STOCK
05-Apr-19,Culture & Environment Services,Lumberjacks,19.98,Miscellaneous Stock  - Purchases,Fencing timber - SKYLARK CLOSE - Landscape Team
08-Apr-19,Culture & Environment Services,Lumberjacks,228.88,Miscellaneous Stock  - Purchases,Fencing - WHITEHOUSE SKATE PARK - Landscape Team
12-Apr-19,Culture & Environment Services,Lumberjacks,16.50,Miscellaneous Stock  - Purchases,Wood for concrete bench bases
04-Apr-19,Culture & Environment Services,Machine Mart Ltd,12.99,Equipment / Furniture / Materials,Drill Bit - PA Inspector
15-Apr-19,Culture & Environment Services,Machine Mart Ltd,58.47,Equipment / Furniture / Materials,tools for the play area inspector
26-Apr-19,Culture & Environment Services,Machine Mart Ltd,21.96,Equipment / Furniture / Materials,Scrapers for Cleansing
25-Apr-19,Culture & Environment Services,Machine Mart Ltd,29.98,Materials and Supplies - Miscellaneous,1 x Measuring wheel
29-Apr-19,Culture & Environment Services,Machine Mart Ltd,59.98,Miscellaneous Stock  - Purchases,Socket set - Landscape team
01-Apr-19,Culture & Environment Services,Makro Self Service Ipswic,242.88,Catering/Beverages,Additional Stock
08-Apr-19,Culture & Environment Services,Makro Self Service Ipswic,71.05,Catering/Beverages,Additional Stock
29-Apr-19,Culture & Environment Services,Makro Self Service Ipswic,172.48,Catering/Beverages,Additional Stock
24-Apr-19,Culture & Environment Services,Mapuk,16.30,Development & Maintenance of Natural Areas,Purchase of digital layer mapping - Sproughton
12-Apr-19,Culture & Environment Services,Martin McColl,1.30,Miscellaneous Expenses,milk
09-Apr-19,Culture & Environment Services,Mick George Ltd,125.00,Miscellaneous Stock  - Purchases,Hire of a skip - WATER TOWER PLAY AREA - CCP Hub
16-Apr-19,Culture & Environment Services,Mick George Ltd,125.00,Miscellaneous Stock  - Purchases,Hire of 6 yard skip - WATERTOWER - Landscape Team
16-Apr-19,Culture & Environment Services,Mick George Ltd,125.00,Miscellaneous Stock  - Purchases,Hire of a 6yard skip - WATERTOWER PA - Landscape Team
17-Apr-19,Culture & Environment Services,Mick George Ltd,125.00,Miscellaneous Stock  - Purchases,Hire if 6 yard skip - WATERTOWER PA - Landscape Team
17-Apr-19,Culture & Environment Services,Mick George Ltd,125.00,Miscellaneous Stock  - Purchases,Hire of 6 yard skip - WATERTOWER PA - Landscape Team
25-Apr-19,Culture & Environment Services,Mick George Ltd,-125.00,Miscellaneous Stock  - Purchases,Refund for skip - WATERTOWER PA - Landscape Team
30-Apr-19,Culture & Environment Services,Mick George Ltd,67.50,Miscellaneous Stock  - Purchases,Disposal of rubber surface at Peterborough play area
30-Apr-19,Culture & Environment Services,Mick George Ltd,832.50,Miscellaneous Stock  - Purchases,Disposal of rubber surface material at Peterborough playarea
08-Apr-19,Culture & Environment Services,Morplan Ltd,72.79,Goods for Resale - Equipment,retail items
30-Apr-19,Culture & Environment Services,Morplan Ltd,30.95,Materials and Supplies - Miscellaneous,Small brown bags for duck Food - Christchurch Hub
09-Apr-19,Culture & Environment Services,Nixon Hire,117.20,Miscellaneous Stock  - Purchases,2 weeks hire of a Portaloo - WATER TOWER PLAY AREA - CCP Hub
04-Apr-19,Culture & Environment Services,Nph Group Ipswich,24.00,Miscellaneous Stock  - Purchases,Magnetic Amber Beacon for digger - Landscape Team
29-Apr-19,Culture & Environment Services,Odlings Mcr Ltd,294.50,Goods for Resale - Bereavement,Masonry supplies
09-Apr-19,Culture & Environment Services,Onlinecarpets.Couk,49.87,Materials and Supplies - Miscellaneous,Underlay Carpet - Christchurch Hub
11-Apr-19,Culture & Environment Services,Orbitalfasteners.Co.Uk,19.81,Equipment / Furniture / Materials,SS Screws
24-Apr-19,Culture & Environment Services,Paypal,480.50,Clothing / Uniform & Laundry,Honey Bros - Chainsaw Trousers and Harness
08-Apr-19,Culture & Environment Services,Paypal,289.90,Materials and Supplies - Miscellaneous,Saw Pod and Harness Size 2
09-Apr-19,Culture & Environment Services,Paypal,9.00,Materials and Supplies - Miscellaneous,key cutting for drugs bins
30-Apr-19,Culture & Environment Services,Paypal,149.19,Materials and Supplies - Miscellaneous,FR JONES & Sons - Control cut guide and Petzl visor
12-Apr-19,Culture & Environment Services,Paypal,305.42,Miscellaneous Stock  - Purchases,Mini Digger_Riddle Bucket for Landscape Team
19-Apr-19,Culture & Environment Services,Pitchcare Online,170.75,Materials and Supplies - Miscellaneous,Round up Provantage & MircoWipe Weed Wipes for Rangers Team
25-Apr-19,Culture & Environment Services,Post Office Counter,2.50,Equipment / Furniture / Materials,Enchanted lost property - returned
17-Apr-19,Culture & Environment Services,Post Office Counter,14.75,Miscellaneous Expenses,Postage of aerialist silks to artist.
03-Apr-19,Culture & Environment Services,Poundland Ltd 1344,1.00,Catering/Beverages,Milk for 50+
05-Apr-19,Culture & Environment Services,Premier Farnell,49.00,Equipment / Furniture / Materials,LED lamps circle lounge
10-Apr-19,Culture & Environment Services,Premier Farnell,58.69,Equipment / Furniture / Materials,4 Gang Extension Cables for meeting rooms.
15-Apr-19,Culture & Environment Services,Premier Farnell,344.94,Equipment / Furniture / Materials,Lighting Desk - mother board section replacement
25-Apr-19,Culture & Environment Services,Premier Inn 44534185,77.91,Training Expenses,training accomodation for Bat training for MF
26-Apr-19,Culture & Environment Services,Premier Inn 44534185,12.19,Training Expenses,Staff Subsistence
29-Apr-19,Culture & Environment Services,Premier Inn 44534185,8.33,Training Expenses,Employee Subsistence
15-Apr-19,Culture & Environment Services,Prezzo,24.17,Miscellaneous Expenses,Staff Welfare
17-Apr-19,Culture & Environment Services,Ram-Mount.Co.Uk,58.27,Direct Transport Costs,2x tablet mounts
29-Apr-19,Culture & Environment Services,Ridgeons,73.44,Equipment / Furniture / Materials,Plywood - HOLYWELLS SPLASH ZONE - PA Inspector
08-Apr-19,Culture & Environment Services,Ridgeons,174.20,Miscellaneous Stock  - Purchases,Cement & Plywood - WHITEHOUSE PLAY AREA - Landscape Team
10-Apr-19,Culture & Environment Services,Ridgeons,7.10,Miscellaneous Stock  - Purchases,Postcrete - Landscape Team
03-Apr-19,Culture & Environment Services,Rlss Uk,45.50,Training/Courses Running Costs,Yearly Membership to enable me to train first aid and Lifegu
30-Apr-19,Culture & Environment Services,Roots&shoots,119.13,Materials and Supplies - Miscellaneous,Shrubs - Christchurch Park Hub
04-Apr-19,Culture & Environment Services,Rs Components,13.08,Equipment / Furniture / Materials,Audio cables for shows
19-Apr-19,Culture & Environment Services,Ruskin Lifting,344.72,Materials and Supplies - Miscellaneous,Repair & Supply various Lifting Tackle - Holywells Hub
09-Apr-19,Culture & Environment Services,Safelocks,12.87,Equipment / Furniture / Materials,Padlock for Front Gate
11-Apr-19,Culture & Environment Services,Safetysuppl,102.90,Miscellaneous Stock  - Purchases,Traffic stop sign- Traffic Management - Landscape Team
01-Apr-19,Culture & Environment Services,Sainsburys S/mkt,14.47,Miscellaneous Expenses,Great East Swim training - Food for induction morning
01-Apr-19,Culture & Environment Services,Sainsburys S/mkts,12.80,Catering/Beverages,Lemons for bars
01-Apr-19,Culture & Environment Services,Sainsburys S/mkts,0.08,Catering/Beverages,Lemons for bars
03-Apr-19,Culture & Environment Services,Sainsburys S/mkts,5.60,Catering/Beverages,lemons for bars
09-Apr-19,Culture & Environment Services,Sainsburys S/mkts,5.60,Catering/Beverages,lemons for bars
10-Apr-19,Culture & Environment Services,Sainsburys S/mkts,25.95,Catering/Beverages,Food for Derivco Conference 51082
10-Apr-19,Culture & Environment Services,Sainsburys S/mkts,27.00,Catering/Beverages,Food for Derivco Conference 51082
17-Apr-19,Culture & Environment Services,Sainsburys S/mkts,4.20,Catering/Beverages,lemons for bars
26-Apr-19,Culture & Environment Services,Sainsburys S/mkts,53.62,Catering/Beverages,Catering order - recharge
29-Apr-19,Culture & Environment Services,Sainsburys S/mkts,5.00,Catering/Beverages,Lemons
04-Apr-19,Culture & Environment Services,Sainsburys S/mkts,18.00,Stationery,Memory stick for training
15-Apr-19,Culture & Environment Services,Savers Health & Beauty,12.46,Materials and Supplies - Miscellaneous,Hand Sanitizer for Corn Exchange toilets.
09-Apr-19,Culture & Environment Services,Screens-R-Us-Limited,146.40,Direct Transport Costs,Windscreen replacement for AV58 PLN F6302
02-Apr-19,Culture & Environment Services,Screens-R-Us-Limited,150.00,Parks Vehicle Costs,Windscreen Replacement to Renault Clio AJ62 HEV hit by stone
29-Apr-19,Culture & Environment Services,Screwfix Dir. Ltd,13.00,Equipment / Furniture / Materials,Pipe Lagging for Election count table screens.
03-Apr-19,Culture & Environment Services,Screwfix Dir. Ltd,12.48,Materials and Supplies - Miscellaneous,Rawplugs - CCP - Landscape Team
05-Apr-19,Culture & Environment Services,Screwfix Dir. Ltd,12.07,Materials and Supplies - Miscellaneous,Hot Galvanised welded chain 6mm x 2m
30-Apr-19,Culture & Environment Services,Screwfix Dir. Ltd,35.22,Miscellaneous Stock  - Purchases,Screwdriver set/Spanner set - Landscape Team
03-Apr-19,Culture & Environment Services,Screwfix Direct,43.67,Equipment / Furniture / Materials,waste valve and cutter for gym water machine
10-Apr-19,Culture & Environment Services,Screwfix Direct,91.92,Equipment / Furniture / Materials,plumbing parts
11-Apr-19,Culture & Environment Services,Screwfix Direct,37.27,Equipment / Furniture / Materials,repair parts
26-Mar-19,Culture & Environment Services,Screwfix Direct,66.63,Parks Vehicle Costs,Seat Covers
29-Mar-19,Culture & Environment Services,Screwfix Direct,33.32,Parks Vehicle Costs,Seat Covers
08-Apr-19,Culture & Environment Services,Screwfix Direct Lt,34.57,Equipment / Furniture / Materials,Cable Reel - PA Inspector
02-Apr-19,Culture & Environment Services,Screwfix Direct Lt,9.99,Materials and Supplies - Miscellaneous,- Christchurch Hub
19-Apr-19,Culture & Environment Services,Screwfix Ipswich Ransomes,14.14,Equipment / Furniture / Materials,Mallet for turf at Bourne PARK
25-Apr-19,Culture & Environment Services,Screwfix Ipswich Ransomes,6.66,Equipment / Furniture / Materials,Builders band - REPAIRS AT HOLYWELLS - PA Inspector
25-Apr-19,Culture & Environment Services,Screwfix Ipswich Ransomes,22.47,Equipment / Furniture / Materials,Turbo coach screws - REPAIR AT HOLYWELLS - PA Inspector
26-Apr-19,Culture & Environment Services,Screwfix Ipswich Ransomes,16.65,Equipment / Furniture / Materials,Grinder disc - PA Inspector
04-Apr-19,Culture & Environment Services,Screwfix Ipswich Ransomes,24.98,Materials and Supplies - Miscellaneous,9380Hvalspar trade W&M GLS PBW 2.5L +Harris trade wire brush
04-Apr-19,Culture & Environment Services,Screwfix Ipswich Ransomes,-8.33,Materials and Supplies - Miscellaneous,METAL PAINT WHITE 750ML+RETURNED Valspar trade W&M GLS PBW
18-Apr-19,Culture & Environment Services,Screwfix Ipswich Ransomes,14.14,Materials and Supplies - Miscellaneous,Bolts for repair at Holywells Park
17-Apr-19,Culture & Environment Services,Screwfix Peterboro,54.94,Miscellaneous Stock  - Purchases,Safety signage for site - WATERTOWER PA - Landscape Team
26-Apr-19,Culture & Environment Services,Sharman Caravans,4.37,Materials and Supplies - Miscellaneous,rubber towing straps
12-Apr-19,Culture & Environment Services,Signs For You Ltd,41.70,Miscellaneous Stock  - Purchases,Signage for the Landscape Team
15-Apr-19,Culture & Environment Services,Sir Henry Royce,33.04,Miscellaneous Stock  - Purchases,Meals while working in Peterborough
04-Apr-19,Culture & Environment Services,Snape Granary Tea Shop,12.71,Miscellaneous Expenses,Crafted route drive check - PRJ240 EV1906
29-Apr-19,Culture & Environment Services,Stationeryu,21.91,Stationery,x4 boxes of address labels for duck food - Christchurch Hub
05-Apr-19,Culture & Environment Services,Strengthshop Uk,132.92,Equipment / Furniture / Materials,Fitness Equipment Purchase for Waterfront - Stecth Bands etc
16-Apr-19,Culture & Environment Services,Suffolk Coastal Distri,8.75,Non Contracted_Professional Services,Personal Licence - Change of Address
09-Apr-19,Culture & Environment Services,Suffolk County Council,11.00,Holding A/C - General Use,Death Certificate for Public Health Funeral
18-Apr-19,Culture & Environment Services,Suffolk County Council,11.00,Holding A/C - General Use,Death certificate for Public Health Funeral
01-Apr-19,Culture & Environment Services,Suffolk County Council,41.67,Non Contracted_Professional Services,Road Closure Application fee
03-Apr-19,Culture & Environment Services,Suffolk County Council,25.00,Non Contracted_Professional Services,Skip Permit for wastesaver
26-Apr-19,Culture & Environment Services,Suffolk Fastener (Ipsw,16.57,Materials and Supplies - Miscellaneous,Tree guard - CCP - PA Inspector
05-Apr-19,Culture & Environment Services,Suk Retail Ltd,11.24,Stationery,HP PREM PLUS GLOSSY A4 20SH
09-Apr-19,Culture & Environment Services,Surf & Turf Instant Sh,22.95,Premises Costs - Miscellaneous,Bolts for Pauline
17-Apr-19,Culture & Environment Services,Swatch Group UK Ltd Dc,48.60,Equipment / Furniture / Materials,14 red button connectors
15-Apr-19,Culture & Environment Services,T J Morris Ltd,8.72,Equipment / Furniture / Materials,Replacement Equipment for Toddler Fun Session
15-Apr-19,Culture & Environment Services,T J Morris Ltd,9.96,Miscellaneous Stock  - Purchases,Tea/coffee/sugar/milk - WATERTOWER PA - Landscape Team
25-Apr-19,Culture & Environment Services,Tanks-Direct.Co.Uk,212.00,Materials and Supplies - Miscellaneous,1000 Litre IBC- TDIBCST - water tank
26-Apr-19,Culture & Environment Services,Tarmac Trading,866.67,Miscellaneous Stock  - Purchases,Concrete - WATERTOWER PA - Landscape Team
26-Apr-19,Culture & Environment Services,Tarmac Trading,433.33,Miscellaneous Stock  - Purchases,Concrete for Peterborough play installation
15-Apr-19,Culture & Environment Services,Tesco Store 2748,61.22,Catering/Beverages,Catering Order - Meeting
09-Apr-19,Culture & Environment Services,Tesco Store 3240,207.50,Catering/Beverages,Food for Derivco Conference 51082
09-Apr-19,Culture & Environment Services,Tesco Store 3240,3.42,Catering/Beverages,Food for Derivco Conference 51082
12-Apr-19,Culture & Environment Services,Tesco Store 3240,165.00,Catering/Beverages,"Gin for Regent Bars, food for Regent Website meeting 12.04."
12-Apr-19,Culture & Environment Services,Tesco Store 3240,25.77,Catering/Beverages,"Gin for Regent Bars, food for Regent Website meeting 12.04."
25-Apr-19,Culture & Environment Services,Tesco Store 3240,163.45,Catering/Beverages,Food for Conference 51094
23-Apr-19,Culture & Environment Services,Tesco Stores 5909,1.10,Miscellaneous Expenses,mlk for refreshments
04-Apr-19,Culture & Environment Services,The Ipswich Cobble,13.33,Equipment / Furniture / Materials,set of keys for the Wharf building
08-Apr-19,Culture & Environment Services,The Ipswich Cobble,33.12,Equipment / Furniture / Materials,Keys cut - Cornhill / Office / lifts
25-Apr-19,Culture & Environment Services,The Ipswich Cobble,13.67,Equipment / Furniture / Materials,Keys cut for the Wharf for CH
04-Apr-19,Culture & Environment Services,The Meare Shop And Tearoo,20.71,Miscellaneous Expenses,Crafted meeting refreshments
04-Apr-19,Culture & Environment Services,The Post Office,3.79,Postage Costs,Document Postage
08-Apr-19,Culture & Environment Services,The Post Office,1.88,Postage Costs,Plaque Postage
15-Apr-19,Culture & Environment Services,The Range,3.33,Equipment / Furniture / Materials,Replacement equipment for toddler fun session
17-Apr-19,Culture & Environment Services,The Range,4.78,Equipment / Furniture / Materials,Activity Banners/Decorations
19-Apr-19,Culture & Environment Services,The Range,8.32,Equipment / Furniture / Materials,Replacement Toddler fun session toys
30-Apr-19,Culture & Environment Services,The Range,8.32,Equipment / Furniture / Materials,Bin for changing room
25-Apr-19,Culture & Environment Services,The Sandcastle Guest H,533.33,Miscellaneous Stock  - Purchases,Accommodation in Lowestoft for Landscape Team
04-Apr-19,Culture & Environment Services,Timpson,6.67,Equipment / Furniture / Materials,Front door key 
10-Apr-19,Culture & Environment Services,Timpson,10.00,Equipment / Furniture / Materials,cleaners toilet roll keys
10-Apr-19,Culture & Environment Services,Timpson,12.50,Equipment / Furniture / Materials,star keys
24-Apr-19,Culture & Environment Services,Timpson,32.46,Equipment / Furniture / Materials,Keys for corn exchange lifts
09-Apr-19,Culture & Environment Services,Timpson,19.00,Materials and Supplies - Miscellaneous,key cutting for bin stores (Buttermarket)
09-Apr-19,Culture & Environment Services,Toolstation Ltd,-29.90,Miscellaneous Stock  - Purchases,Bosch blades - REFUND
09-Apr-19,Culture & Environment Services,Toolstation Ltd,60.27,Miscellaneous Stock  - Purchases,Bosch blades & lock nuts - Landscape Team
09-Apr-19,Culture & Environment Services,Toolstation Ltd,26.31,Miscellaneous Stock  - Purchases,Wrench/screwdriver/blades - Landscape Team
16-Apr-19,Culture & Environment Services,Town & Tea,162.52,Miscellaneous Functions & Events,payment for tea walk refreshments
26-Apr-19,Culture & Environment Services,Town & Tea,83.34,Miscellaneous Functions & Events,tea walk refreshments
05-Apr-19,Culture & Environment Services,Tp Ipswich,38.00,Equipment / Furniture / Materials,Rapid cement - SHERRINGTON ROAD - PA Inspector
12-Apr-19,Culture & Environment Services,Trainline.Com,226.20,Training Expenses,Travel to training course MH EH
17-Apr-19,Culture & Environment Services,Turner Tool Hire,495.00,Equipment Hire,MEWP HIRE iNVOICE - 209941
03-Apr-19,Culture & Environment Services,Value Products Ltd,126.60,Clothing / Uniform & Laundry,boots
29-Apr-19,Culture & Environment Services,Victoria Nurseries,11.33,Materials and Supplies - Miscellaneous,Turf - Holywells Hub
30-Apr-19,Culture & Environment Services,Victoria Nurseries,51.04,Materials and Supplies - Miscellaneous,Bedding Plants - Christchurch Park Hub
05-Apr-19,Culture & Environment Services,W D Coe Ltd,49.92,Clothing / Uniform & Laundry,Uniform from Coes
17-Apr-19,Culture & Environment Services,W J Green Limited,435.07,Equipment / Furniture / Materials,Machinery repair of Stihl MS200T
10-Apr-19,Culture & Environment Services,Waitrose Ltd,11.46,Catering/Beverages,Food for Derivco Conference 51082
26-Apr-19,Culture & Environment Services,Waitrose Ltd,1.74,Catering/Beverages,food for Calder conference 51094
26-Apr-19,Culture & Environment Services,Waitrose Ltd,2.75,Catering/Beverages,food for Calder conference 51094
02-Apr-19,Culture & Environment Services,Waitrose Ltd,0.96,Subsistence & Conference/Seminar / Event Expenses,Milk for Shop mo
09-Apr-19,Culture & Environment Services,Waitrose Ltd,0.74,Subsistence & Conference/Seminar / Event Expenses,Milk for Shop mo
16-Apr-19,Culture & Environment Services,Waitrose Ltd,0.96,Subsistence & Conference/Seminar / Event Expenses,Milk for Shop mo
30-Apr-19,Culture & Environment Services,Waitrose Ltd,0.96,Subsistence & Conference/Seminar / Event Expenses,Milk for Shop mo
04-Apr-19,Culture & Environment Services,Wh Smith,3.32,Stationery,Markers 
09-Apr-19,Culture & Environment Services,Wh Smith,3.32,Stationery,Markers 
04-Apr-19,Culture & Environment Services,Wickes Ipswich,13.32,Equipment / Furniture / Materials,Tarp to cover Pergola at Millennium Cerm
26-Apr-19,Culture & Environment Services,Wickes Ipswich,27.50,Equipment / Furniture / Materials,Hoselock fitting & nozzle - PA Inspector
30-Apr-19,Culture & Environment Services,Wickes Ipswich,21.24,Equipment / Furniture / Materials,Contractors Rammer - Groundworks
15-Apr-19,Culture & Environment Services,Wickes Ipswich,11.87,Materials and Supplies - Miscellaneous,Bark - Christchurch Hub
09-Apr-19,Culture & Environment Services,Wickes Ipswich,7.92,Miscellaneous Stock  - Purchases,Postcrete - SKYLARK PLAY AREA - Landscape Team
25-Apr-19,Culture & Environment Services,Wm Morrisons Store,6.67,Miscellaneous Stock  - Purchases,Water for staff - WATERTOWER PLAY AREA - Landscape Team
10-Apr-19,Culture & Environment Services,Www.Archersigns.Co.Uk,145.95,Miscellaneous Stock  - Purchases,Road signage to comply with working on road verges
24-Apr-19,Culture & Environment Services,Www.Ausphysio.Com,149.85,Equipment / Furniture / Materials,Pilates bands
05-Apr-19,Culture & Environment Services,Www.Banneruk.Com,62.47,Stationery,Bankers Boxes / Office Supplies
26-Apr-19,Culture & Environment Services,Www.Banneruk.Com,14.87,Stationery,Stationery for office
29-Apr-19,Culture & Environment Services,Www.Banneruk.Com,41.89,Stationery,Stationary
08-Apr-19,Culture & Environment Services,Www.Bunzlcleaningsuppl,36.45,Cleaning Supplies,Mop Heads
18-Apr-19,Culture & Environment Services,Www.Hgs.Co.Uk,28.88,Equipment / Furniture / Materials,Bottle Scales for stocktaking
12-Apr-19,Culture & Environment Services,Www.Inn-Dispensable.Com,280.00,Training Expenses,Personal Licence Training Course 
19-Apr-19,Culture & Environment Services,Www.Ipswichpa.Co.Uk,123.32,Equipment / Furniture / Materials,Head Mics
09-Apr-19,Culture & Environment Services,Www.Joeandsephs.Co.Uk,235.52,Catering/Beverages,Popcorn for bars
08-Apr-19,Culture & Environment Services,Www.Kegcheck.Com,136.25,Equipment / Furniture / Materials,Barrel scales
08-Apr-19,Culture & Environment Services,Www.Kegcheck.Com,136.25,Equipment / Furniture / Materials,Barrel scales
17-Apr-19,Culture & Environment Services,Www.Lampshoponline.Co.Uk,10.87,Equipment / Furniture / Materials,roof void tubes
01-Apr-19,Culture & Environment Services,Www.Lifesaversdirect,270.00,Training/Courses Running Costs,FAW New Candidate Pack x 12 & EFAW New Candidate Pack x 12
17-Apr-19,Culture & Environment Services,Www.Lifesaversdirect,46.00,Training/Courses Running Costs,Resusci/Little Junior Airways Pk25
09-Apr-19,Culture & Environment Services,Www.Lockshopdirect.Co.,29.71,Equipment / Furniture / Materials,Padlocks for gates at rear of building and AWA.
30-Apr-19,Culture & Environment Services,Www.Neuff.Co.Uk,132.50,Equipment / Furniture / Materials,no jump boards x3 for athletics events
29-Apr-19,Culture & Environment Services,Www.Nisbets.Com,144.02,Equipment / Furniture / Materials,Hot Water Urn
29-Apr-19,Culture & Environment Services,Www.Nisbets.Com,19.97,Equipment / Furniture / Materials,Replacement Thermometers for Corn Ex Kitchen
19-Apr-19,Culture & Environment Services,Www.Primrose.Co.Uk,87.48,Equipment / Furniture / Materials,Cherry Tree - Cemeteries
08-Apr-19,Culture & Environment Services,Www.Safelincs.Co.Uk,107.40,Equipment / Furniture / Materials,"Fire Alarm Door Holder, Shuts By Noise of Alarm"
24-Apr-19,Culture & Environment Services,Www.Safetec Direc.Co.U,116.45,Clothing / Uniform & Laundry,P� Filter Spec google set
29-Apr-19,Culture & Environment Services,Www.Stadia-Sports.Co.U,166.00,Materials and Supplies - Miscellaneous,Purchase of tennis nets for CCP
30-Apr-19,Culture & Environment Services,Www.Stadia-Sports.Co.U,-9.00,Materials and Supplies - Miscellaneous,Refund of overpayment for tennis nets
12-Apr-19,Culture & Environment Services,Www.Staples.Co.Uk,12.39,Stationery,A4 laminating pouches
08-Apr-19,Culture & Environment Services,Www.Zoro.Co.Uk,58.25,Clothing / Uniform & Laundry,Gloves size 10
05-Apr-19,Development,Amznmktplace Amazon.Co.Uk,24.99,Equipment / Furniture / Materials,measuring wheel
30-Apr-19,Development,Asda Stores 4278,8.33,Election Expenses,Goods for elections
30-Apr-19,Development,B & Q 1315,39.39,Election Expenses,Goods for elections
10-Apr-19,Development,Ccas Limited,125.00,Training Expenses,H&S Awareness training - 12/4/2019
18-Apr-19,Development,Cpw Locksmiths And Securi,38.33,Stationery,Padlocks for housing sites
30-Apr-19,Development,Dyofix,40.00,Premises Costs - Miscellaneous,Blue dye powder for CCP round pond
10-Apr-19,Development,Geodesys,88.33,Capital Expenditure,14 cobbold street
17-Apr-19,Development,Lexis Nexis,492.00,Publications - Purchase,Knights BC updates Issue 85
15-Apr-19,Development,Machine Mart Ltd,6.99,Premises Costs - Miscellaneous,cable ties
30-Apr-19,Development,Mid Suffolk District C,192.00,Non Contracted_Professional Services,Partnership application Inspections Green Farm Barn
09-Apr-19,Development,Ncs*vue Citb Hs&e Rev,12.00,Publications - Purchase,Managers & Professionals CSCS H&S Book
30-Apr-19,Development,Riba Services,153.80,Publications - Purchase,JCT contracts MW with Contractors Design
01-Apr-19,Development,Sainsburys S/mkt,8.58,Cleaning Supplies,cleaning/milk etc
01-Apr-19,Development,Sainsburys S/mkt,17.90,Subsistence & Conference/Seminar / Event Expenses,cleaning/milk etc
05-Apr-19,Development,Suffolk County Council,10.00,Stationery,Suffolk Records (SCC) Archived document copies
15-Apr-19,Development,Suk Retail Ltd,4.07,Materials and Supplies - Miscellaneous,Tea bags - urgent as liquidline PO didn't raise in time
09-Apr-19,Development,Trainline,41.50,Use Of Public Transport,"Train, Ipswich-Stratford, for business meeting"
30-Apr-19,Development,Trainline,177.30,Use Of Public Transport,"2x Ipswich to London & U/G, Conservation seminar, GH & NQ"
05-Apr-19,Development,Www.Argos.Co.Uk,136.61,Fixtures & Fittings,2 microwaves required for Grafton House as break downs
05-Apr-19,Development,Www.Banneruk.Com,22.33,Stationery,flip charts & clips
12-Apr-19,Development,Www.First4safety.Co.Uk,211.65,Training Expenses,IOSH Fire Safety for Managers
11-Apr-19,Development,Www.Iomnet.Org.Uk,150.00,Employee Expenses,CILT 2019/20 Membership MN
03-Apr-19,Development,Www.Mailcoms.Co.Uk,69.95,Postage Costs,annual svce & updates
12-Apr-19,Development,Www.Placeservices.Co.U,620.00,Training Expenses,"Hatfield House, historic repairs course - GH,NQ, JI, ZT"
19-Apr-19,Development,Www.Westminster-Briefi,250.75,Training Expenses,RC Westminster Briefing
01-Apr-19,Finance & Revenues,Alexandra Website,915.00,Clothing / Uniform & Laundry,Ipserv Clothing & Footware 
02-Apr-19,Finance & Revenues,Amzn Mktp Uk,12.87,Computer Equipment - Purchase,Dynmo printer lables
02-Apr-19,Finance & Revenues,Amznmktplace,7.99,Computer Equipment - Purchase,Wireless Mse
11-Apr-19,Finance & Revenues,Amznmktplace,54.99,Equipment / Furniture / Materials,Windows 10 OS Upgrade
08-Apr-19,Finance & Revenues,Amznmktplace,3.29,Telecommunication Costs - Mobiles,Protective case for Smartphone
19-Apr-19,Finance & Revenues,Amznmktplace,6.58,Telecommunication Costs - Mobiles,Protective cases for Smartphones
19-Apr-19,Finance & Revenues,Amznmktplace,3.29,Telecommunication Costs - Mobiles,Protective cases for Smartphones
17-Apr-19,Finance & Revenues,Amznmktplace Amazon.Co.Uk,1.65,Telecommunication Costs - Business Phones,Headphone accessories
04-Apr-19,Finance & Revenues,Amznmktplace Amazon.Co.Uk,3.29,Telecommunication Costs - Mobiles,Protective case for Smartphone
25-Apr-19,Finance & Revenues,Cbt Nuggets,47.13,Training Expenses,ICT Training
17-Apr-19,Finance & Revenues,Comms Express Ltd,180.25,Capital Expenditure,Data cabinet and accessories for East Villa
19-Apr-19,Finance & Revenues,Comms Express Ltd,"1,493.07",Capital Expenditure,Wi-Fi access point for East Villa
26-Apr-19,Finance & Revenues,Comms Express Ltd,497.69,Capital Expenditure,Wi-Fi access points for East Villa
17-Apr-19,Finance & Revenues,Ebuyer (Uk) Ltd,"1,721.25",Computer Equipment - Purchase,Election scanners
30-Apr-19,Finance & Revenues,Greater Anglia Trains,95.58,Training Expenses,FME/GIS training course (travel)
16-Apr-19,Finance & Revenues,Greater Anglia Trains,27.00,Use Of Public Transport,Train Ticket - Weeley to London return 13/5/19
02-Apr-19,Finance & Revenues,Paypal,32.97,Computer Software - Purchase,Domain registrations
12-Apr-19,Finance & Revenues,Paypal,89.91,Computer Software - Purchase,Domain renewal
12-Apr-19,Finance & Revenues,Paypal,35.97,Computer Software - Purchase,Domain renewals
25-Apr-19,Finance & Revenues,Paypal,65.94,Computer Software - Purchase,Domain registrations
11-Apr-19,Finance & Revenues,Paypal,35.97,Non Contracted_Professional Services,Domain renewals
29-Apr-19,Finance & Revenues,Paypal,19.98,Web Service costs,Domain registrations
11-Apr-19,Finance & Revenues,"Probrand Ltd.,",298.87,Equipment / Furniture / Materials,"2 x 19"" Monitors CSC"
09-Apr-19,Finance & Revenues,Service Fees - Fraedom Pty Ltd,383.15,Computer Software - Maintenance,Fraedom Card Usage Fees 1/3/19 to 31/3/19
08-Apr-19,Finance & Revenues,Smartsheet,35.36,Computer Equipment - Purchase,Smartsheet license for Finance
11-Apr-19,Finance & Revenues,Southend County,735.00,Legal Services & Fees,Council Tax committal summons
17-Apr-19,Finance & Revenues,Southend County,420.00,Legal Services & Fees,Council Tax summons
25-Apr-19,Finance & Revenues,Southend County,277.50,Legal Services & Fees,Council Tax court summons
17-Apr-19,Finance & Revenues,Trainline,124.92,Training Expenses,Training Course Travel
18-Apr-19,Finance & Revenues,Trainline,90.68,Use Of Public Transport,Rail Tickets 
18-Apr-19,Finance & Revenues,Trainline.Com,34.83,Use Of Public Transport,Rail Tickets 
11-Apr-19,Finance & Revenues,Www.Aat-Org.Uk,151.00,Employee Expenses,AAT Membership 
19-Apr-19,Housing & Community Services,Amazon.Co.Uk,19.65,Computer Consumables and other Minor IT costs,Wireless mouse
18-Apr-19,Housing & Community Services,Amazon.Co.Uk,10.97,Equipment / Furniture / Materials,Bungees for Hireshop Altro Flooring
01-Apr-19,Housing & Community Services,Amzn Mktp Uk,20.98,Equipment / Furniture / Materials,Wireless mouse 
10-Apr-19,Housing & Community Services,Amzn Mktp Uk,10.88,Equipment / Furniture / Materials,No Parking Signs
12-Apr-19,Housing & Community Services,Amzn Mktp Uk,22.35,Telecommunication Costs - Mobiles,Screen Protectors
16-Apr-19,Housing & Community Services,Amznmktplace,16.99,Computer Equipment - Purchase,Wireless Keyboard & Mouse
09-Apr-19,Housing & Community Services,Amznmktplace,1.32,Materials and Supplies - Miscellaneous,Key tags for void properties 
01-Apr-19,Housing & Community Services,Amznmktplace,3.49,Specific Campaigns / Projects expenditure,Stopwatch for crucial crew
05-Apr-19,Housing & Community Services,Amznmktplace,18.97,Telecommunication Costs - Mobiles,Mobile Phone Cases
12-Apr-19,Housing & Community Services,Amznmktplace,94.51,Telecommunication Costs - Mobiles,Phone cases
15-Apr-19,Housing & Community Services,Amznmktplace,12.98,Telecommunication Costs - Mobiles,USB Cables
15-Apr-19,Housing & Community Services,Amznmktplace,19.90,Telecommunication Costs - Mobiles,USB Car Chargers
17-Apr-19,Housing & Community Services,Amznmktplace Amazon.Co.Uk,99.73,Equipment / Furniture / Materials,"2x 36v Bosch Batteries. 1x K Reeve, 1x "
16-Apr-19,Housing & Community Services,Bloomsbury Publish,1.00,Equipment / Furniture / Materials,1 cost put on procurement card for purchase now refunded
16-Apr-19,Housing & Community Services,Booker Limited Ipswich,3.29,Equipment / Furniture / Materials,24x bottled water for the emergency store.
29-Apr-19,Housing & Community Services,Booker Limited Ipswich,16.97,Equipment / Furniture / Materials,"Fairy Liquid, Marigold Gloves & Scouring sponges "
04-Apr-19,Housing & Community Services,Bunzl,139.63,Cleaning Supplies,"Blue Roll, floor cleaner, Viakal, hand wash, black bin liner"
29-Apr-19,Housing & Community Services,Campbellmil,177.50,Equipment / Furniture / Materials,2 x 36v 4.0amp Bosch Batteries for Hirestore
17-Apr-19,Housing & Community Services,Cpw Locksmiths And Securi,80.00,HRA Special Repairs & Maintenance,service/repair lock Cumberland Towers
26-Apr-19,Housing & Community Services,Cpw Locksmiths And Securi,80.00,HRA Special Repairs & Maintenance,fit 2 locks to Wingate House
29-Apr-19,Housing & Community Services,Cpw Locksmiths And Securi,80.00,HRA Special Repairs & Maintenance,AHC 186 service lock and repair
30-Apr-19,Housing & Community Services,Cpw Locksmiths And Securi,5.83,HRA Special Repairs & Maintenance,key cut Wingate House
25-Apr-19,Housing & Community Services,E B Carpets,585.00,Services for Clients,Carpet for incentive scheme property
10-Apr-19,Housing & Community Services,J2 Efax Plus Service,11.00,Miscellaneous Expenses,Monthly fee for secure fax system (used for food parcels)
28-Mar-19,Housing & Community Services,Krustys Bakery,145.00,Miscellaneous Expenses,anniversary Stratford Court food
19-Apr-19,Housing & Community Services,Nicholas Estates,280.00,Services for Clients,Admin fee
01-Apr-19,Housing & Community Services,Possessionclaim.Go,325.00,Legal Services & Fees,possession claim on line
01-Apr-19,Housing & Community Services,Possessionclaim.Go,325.00,Legal Services & Fees,possession claim on line
01-Apr-19,Housing & Community Services,Possessionclaim.Go,325.00,Legal Services & Fees,possession claim on line
01-Apr-19,Housing & Community Services,Possessionclaim.Go,325.00,Legal Services & Fees,Possession claim on line
01-Apr-19,Housing & Community Services,Possessionclaim.Go,325.00,Legal Services & Fees,Possession claim on line
12-Apr-19,Housing & Community Services,Possessionclaim.Go,325.00,Legal Services & Fees,possession claim line
12-Apr-19,Housing & Community Services,Possessionclaim.Go,325.00,Legal Services & Fees,possession claim on line
12-Apr-19,Housing & Community Services,Possessionclaim.Go,325.00,Legal Services & Fees,possession claim on line
12-Apr-19,Housing & Community Services,Possessionclaim.Go,325.00,Legal Services & Fees,possession claim on line
12-Apr-19,Housing & Community Services,Possessionclaim.Go,325.00,Legal Services & Fees,possession claim on line
12-Apr-19,Housing & Community Services,Possessionclaim.Go,325.00,Legal Services & Fees,possession claim on line
12-Apr-19,Housing & Community Services,Possessionclaim.Go,325.00,Legal Services & Fees,possession claim on line
12-Apr-19,Housing & Community Services,Possessionclaim.Go,325.00,Legal Services & Fees,possession claim on line
12-Apr-19,Housing & Community Services,Possessionclaim.Go,325.00,Legal Services & Fees,possession claim on line
12-Apr-19,Housing & Community Services,Possessionclaim.Go,325.00,Legal Services & Fees,possession claim on line
12-Apr-19,Housing & Community Services,Possessionclaim.Go,325.00,Legal Services & Fees,possession claim on line
25-Apr-19,Housing & Community Services,Possessionclaim.Go,325.00,Legal Services & Fees,possession claim line on line
25-Apr-19,Housing & Community Services,Possessionclaim.Go,325.00,Legal Services & Fees,possession claim on line
25-Apr-19,Housing & Community Services,Possessionclaim.Go,325.00,Legal Services & Fees,possession claim on line
25-Apr-19,Housing & Community Services,Possessionclaim.Go,325.00,Legal Services & Fees,possession claim on line
25-Apr-19,Housing & Community Services,Possessionclaim.Go,325.00,Legal Services & Fees,possession claim on line
25-Apr-19,Housing & Community Services,Possessionclaim.Go,325.00,Legal Services & Fees,possession claim on line
25-Apr-19,Housing & Community Services,Possessionclaim.Go,325.00,Legal Services & Fees,possession claim on line
26-Apr-19,Housing & Community Services,Sainsburys S/mkt,12.50,Clothing / Uniform & Laundry,Work Trousers 
05-Apr-19,Housing & Community Services,Sainsburys S/mkts,17.00,Materials and Supplies - Miscellaneous,Toilet Brushes/Washing Up Sponges
22-Apr-19,Housing & Community Services,Screwfix Direct,49.99,Equipment / Furniture / Materials,Paint Sprayer MC178 Hireshop
26-Apr-19,Housing & Community Services,Tesco Pfs 3887,10.05,Equipment / Furniture / Materials,Petrol for small plant machinery held in hireshop
15-Apr-19,Housing & Community Services,Tetra Scene Of Crime,37.00,Equipment / Furniture / Materials,100 evidence bags for waste enforcement
10-Apr-19,Housing & Community Services,The Ipswich Cobble,10.00,Equipment / Furniture / Materials,2 x keys cut 
04-Apr-19,Housing & Community Services,The Range,58.11,Miscellaneous Expenses,items Holywells & Dundee House
24-Apr-19,Housing & Community Services,Topline,74.00,Publications - Subscriptions,Pool Water Treatment 
18-Apr-19,Housing & Community Services,Trainline,102.62,Training Expenses,Train ticket 
25-Apr-19,Housing & Community Services,Trainline,89.30,Use Of Public Transport,return travel to London for conference
02-Apr-19,Housing & Community Services,Trainline.Com,111.36,Training Expenses,Train tickets to London
01-Apr-19,Housing & Community Services,Travelodge Gb0000,569.00,Miscellaneous Expenses,Hotel for tenant after incident made house unliveable
05-Apr-19,Housing & Community Services,Travelodge Gb0000,433.50,Miscellaneous Expenses,Hotel for tenant as property unliveable
02-Apr-19,Housing & Community Services,Westminster Insight,351.00,Training Expenses,Training/Conference 
05-Apr-19,Housing & Community Services,Www.Banneruk.Com,91.69,Stationery,Stationery
18-Apr-19,Housing & Community Services,Www.Banneruk.Com,42.41,Stationery,Unpaid stationery order from November 2018
18-Apr-19,Housing & Community Services,Www.Banneruk.Com,45.25,Stationery,Unpaid stationery order from November 2018
29-Apr-19,Housing & Community Services,Www.Banneruk.Com,84.93,Stationery,Stationery
11-Apr-19,Housing & Community Services,Www.Barriersdirect.Co.,209.22,Premises Costs - Miscellaneous,New speed Barrier Small Car park 
03-Apr-19,Housing & Community Services,Www.Certsure.Com,35.00,Equipment / Furniture / Materials,18th Edition Electrical Site Guide for Apprentice
09-Apr-19,Housing & Community Services,Www.Defibshop.Co.Uk,52.80,Materials and Supplies - Miscellaneous,Defib Pad
03-Apr-19,People & Governance,Amazon.Co.Uk,40.65,Miscellaneous Stock  - Purchases,Pink Envelopes for Print Room Election job
12-Apr-19,People & Governance,Amzn Mktp Uk,22.49,Miscellaneous Stock  - Purchases,Plastic Folders for Election Poster kits
24-Apr-19,People & Governance,Amzn Mktp Uk,25.71,Miscellaneous Stock  - Purchases,A2 Plastic Sheets for A Boards (Museum/Mansion)
24-Apr-19,People & Governance,Amznmktplace,14.20,Miscellaneous Stock  - Purchases,Magnetic Tape for A Boards (Museum/Mansion)
19-Apr-19,People & Governance,Amznmktplace Amazon.Co.Uk,24.47,Miscellaneous Stock  - Purchases,Laminating Pouches for Print Room
11-Mar-19,People & Governance,Companies House,13.00,Legal Services & Fees,Companies House confirmation statements
29-Apr-19,People & Governance,Companies House,13.00,Legal Services & Fees,Companies House confirmation statements
22-Apr-19,People & Governance,Facebk *6rb6rln8j2,4.80,Advertising/Publicity,Social Media Advertising
22-Apr-19,People & Governance,Facebk *6rb6rln8j2,38.67,Advertising/Publicity,Social Media Advertising
22-Apr-19,People & Governance,Facebk *6rb6rln8j2,129.42,Advertising/Publicity,Social Media Advertising
22-Apr-19,People & Governance,Facebk *6rb6rln8j2,310.45,Advertising/Publicity,Social Media Advertising
29-Mar-19,People & Governance,Facebk *h8gqxks7j2,3.34,Advertising/Publicity,Social Media Advertising
29-Mar-19,People & Governance,Facebk *h8gqxks7j2,20.27,Advertising/Publicity,Social Media Advertising
29-Mar-19,People & Governance,Facebk *h8gqxks7j2,3.92,Advertising/Publicity,Social Media Advertising
29-Mar-19,People & Governance,Facebk *h8gqxks7j2,10.08,Advertising/Publicity,Social Media Advertising
29-Mar-19,People & Governance,Facebk *h8gqxks7j2,445.72,Advertising/Publicity,Social Media Advertising
11-Apr-19,People & Governance,Facebk *kvdf4m68j2,24.72,Advertising/Publicity,Social Media Advertising
11-Apr-19,People & Governance,Facebk *kvdf4m68j2,16.47,Advertising/Publicity,Social Media Advertising
11-Apr-19,People & Governance,Facebk *kvdf4m68j2,224.37,Advertising/Publicity,Social Media Advertising
11-Apr-19,People & Governance,Facebk *kvdf4m68j2,217.78,Advertising/Publicity,Social Media Advertising
08-Apr-19,People & Governance,Facebk *mycszka8j2,8.65,Advertising/Publicity,Social Media Advertising
08-Apr-19,People & Governance,Facebk *mycszka8j2,3.82,Advertising/Publicity,Social Media Advertising
08-Apr-19,People & Governance,Facebk *mycszka8j2,92.74,Advertising/Publicity,Social Media Advertising
08-Apr-19,People & Governance,Facebk *mycszka8j2,70.46,Advertising/Publicity,Social Media Advertising
04-Apr-19,People & Governance,Facebk *rb9chln8j2,27.61,Advertising/Publicity,Social Media Advertising
04-Apr-19,People & Governance,Facebk *rb9chln8j2,17.49,Advertising/Publicity,Social Media Advertising
04-Apr-19,People & Governance,Facebk *rb9chln8j2,3.74,Advertising/Publicity,Social Media Advertising
04-Apr-19,People & Governance,Facebk *rb9chln8j2,96.43,Advertising/Publicity,Social Media Advertising
04-Apr-19,People & Governance,Facebk *rb9chln8j2,338.06,Advertising/Publicity,Social Media Advertising
15-Apr-19,People & Governance,Facebk Apbzukalw2,159.84,Advertising/Publicity,Crafted Classique 2019 FB ads
01-Apr-19,People & Governance,Google,162.40,Advertising/Publicity,K&T Google Ads campaign PPC
11-Apr-19,People & Governance,Google,40.11,Advertising/Publicity,Google Ad campaign
15-Apr-19,People & Governance,Google,62.63,Advertising/Publicity,Venues Ipswich Google Ads
29-Apr-19,People & Governance,Lakeland Limited,4.16,Miscellaneous Functions & Events,paper doyles for mayors parlour
15-Apr-19,People & Governance,Mailchimp,418.20,Subscriptions - Service Related,MailChimp
29-Apr-19,People & Governance,Mailchimp,195.81,Subscriptions - Service Related,Email Marketing
01-Apr-19,People & Governance,Marks&spencer Plc,62.24,Miscellaneous Functions & Events,cake/sandwiches for ball helpers and band
03-Apr-19,People & Governance,Marks&spencer Plc,10.96,Miscellaneous Functions & Events,nibbles for Maritime Trust event
10-Apr-19,People & Governance,Marks&spencer Plc,30.89,Miscellaneous Functions & Events,sandwiches /cake for event
15-Apr-19,People & Governance,Marks&spencer Plc,37.39,Miscellaneous Functions & Events,Sandwiches / cake for event
17-Apr-19,People & Governance,Marks&spencer Plc,23.51,Miscellaneous Functions & Events,cheese/nibbles for Ball volenters
24-Apr-19,People & Governance,Marks&spencer Plc,18.72,Miscellaneous Functions & Events,mayoral reception for ITC
25-Apr-19,People & Governance,Marks&spencer Plc,1.92,Miscellaneous Functions & Events,afternoon tea for event
25-Apr-19,People & Governance,Marks&spencer Plc,12.71,Miscellaneous Functions & Events,afternoon tea for event
29-Apr-19,People & Governance,Marks&spencer Plc,11.83,Miscellaneous Functions & Events,afternoon tea for event
29-Apr-19,People & Governance,Marks&spencer Plc,26.04,Miscellaneous Functions & Events,afternoon tea for event
01-Apr-19,People & Governance,Ryman,3.32,Miscellaneous Functions & Events,envelopes for mayors charity ball
29-Apr-19,People & Governance,Sainsburys Petrol,25.02,Direct Transport Costs,fuel for mayoral car
01-Apr-19,People & Governance,Sainsburys S/mkt,33.45,Miscellaneous Functions & Events,soft drink/fruit for Mayors ball
04-Apr-19,People & Governance,Sainsburys S/mkt,3.60,Miscellaneous Functions & Events,coke/tomato ketchup for 4YP pizza event
04-Apr-19,People & Governance,Sainsburys S/mkt,5.60,Miscellaneous Functions & Events,soft drinks. 4YP event
04-Apr-19,People & Governance,Sainsburys S/mkt,8.54,Specific Campaigns / Projects expenditure,Biscuits for Councillors Meetings
24-Apr-19,People & Governance,Sainsburys S/mkts,0.92,Miscellaneous Functions & Events,afternoon tea for event
15-Apr-19,People & Governance,Shutterstock,29.00,Miscellaneous Stock  - Purchases,"Stock photo subscription, cancelled and credited"
17-Apr-19,People & Governance,Shutterstock,-29.00,Miscellaneous Stock  - Purchases,"Stock photo subscription, cancelled and credited"
08-Apr-19,People & Governance,Spring Road,33.37,Direct Transport Costs,fuel for Mayors car
17-Apr-19,People & Governance,"Sprout Social, Inc",789.41,Subscriptions - Service Related,Social Media Management
01-Apr-19,People & Governance,Suk Retail Ltd,20.82,Computer Consumables and other Minor IT costs,Cllrs Canon PG540 ink
01-Apr-19,People & Governance,Suk Retail Ltd,11.66,Computer Consumables and other Minor IT costs,S/Housing  Canon 570 PGBK
04-Apr-19,People & Governance,Suk Retail Ltd,41.65,Computer Consumables and other Minor IT costs,Cllrs ink HP 304xl 304xl tricolour
11-Apr-19,People & Governance,Suk Retail Ltd,18.32,Computer Consumables and other Minor IT costs,Cllrs Canon PG545 XL BLK
25-Apr-19,People & Governance,Suk Retail Ltd,64.16,Computer Consumables and other Minor IT costs,External Hard Drive for Macs
10-Apr-19,People & Governance,The UK Careers Fair,354.00,Training/Courses Running Costs,Fees for having a stand for IBC at the Careers Fair
01-Apr-19,People & Governance,Waitrose Ltd,1.24,Miscellaneous Functions & Events,mayors charity ball
03-Apr-19,People & Governance,Waitrose Ltd,7.03,Miscellaneous Functions & Events,squash/biscuits for St Joseph's College and Italian students
05-Apr-19,People & Governance,Waitrose Ltd,4.57,Miscellaneous Functions & Events,coffee for parlour
24-Apr-19,People & Governance,Waitrose Ltd,7.57,Miscellaneous Functions & Events,mayoral reception
29-Apr-19,People & Governance,Waitrose Ltd,4.37,Miscellaneous Functions & Events,afternoon tea and coffee forparlour
29-Apr-19,People & Governance,Waitrose Ltd,0.74,Miscellaneous Functions & Events,milk for afternoon tea
02-Apr-19,People & Governance,Wm Morrisons Store,478.00,Specific Campaigns / Projects expenditure,Retirement gift vouchers 
29-Apr-19,People & Governance,Wp-Arts Marketing,110.00,Training Expenses,AMA Mentoring Webinar
08-Apr-19,People & Governance,Www.Banneruk.Com,56.49,Computer Consumables and other Minor IT costs,Canon inks Waterfront/ Shel. Housing
08-Apr-19,People & Governance,Www.Banneruk.Com,213.56,Computer Consumables and other Minor IT costs,Canon inks Waterfront/ Shel. Housing
24-Apr-19,People & Governance,Www.Banneruk.Com,90.43,Computer Consumables and other Minor IT costs,723 toner
24-Apr-19,People & Governance,Www.Banneruk.Com,147.67,Computer Consumables and other Minor IT costs,"S/housing 4xCL-541XL, 4xPG-540"
18-Apr-19,People & Governance,Www.Neopost.Co.Uk,122.82,Miscellaneous Stock  - Purchases,Sealing Fluid for Folder Inserter Machine (Print Room)
10-Apr-19,People & Governance,Www.Paper.Co.Uk,138.57,Miscellaneous Stock  - Purchases,Paper required for print room
17-Apr-19,People & Governance,Www.Paper.Co.Uk,117.13,Miscellaneous Stock  - Purchases,Paper for the Print Room
17-Apr-19,People & Governance,Www.Paper.Co.Uk,225.07,Miscellaneous Stock  - Purchases,Paper for the print room
29-Apr-19,People & Governance,Www.Paper.Co.Uk,183.48,Miscellaneous Stock  - Purchases,Required Paper for the print room
05-Apr-19,People & Governance,Www.Registry-Trust.Org,4.17,Non Contracted_Professional Services,TrustOnline search result
11-Apr-19,People & Governance,Www.Voucherexpress.Co.,220.75,Specific Campaigns / Projects expenditure,Retirement giftcard
